[Event "Israel National League 2024"]
[Site "Israel"]
[Date "2024.02.09"]
[Round "5.22"]
[White "Kargin, Arseny"]
[Black "Gladyszev, Oleg"]
[Result "1-0"]
[ECO "B33"]
[WhiteElo "2377"]
[BlackElo "2410"]
[Annotator "TA"]
[PlyCount "80"]
[EventDate "2024.01.07"]
[EventType "team-tourn"]
[EventCountry "ISR"]
[SourceTitle "playchess.com"]
[Source "ChessBase"]
[SourceQuality "1"]
[TimeControl "40/5400+30:1800+30"]

{[%evp 16,80,7,12,2,2,3,0,9,5,68,37,51,41,34,51,55,46,97,102,91,80,75,57,58,50,56,59,65,48,45,41,64,42,64,69,118,103,103,111,93,85,54,44,88,48,95,81,65,0,0,-122,9,20,22,0,0,0,0,0,0,0,0,0,217,56,29999]} 1. e4 {[%emt 0:00:05]} c5 {[%emt 0:00:05]} 2. Nf3 {[%emt 0:00:03][%cal Bg1f3,Bf3d4,Bd4b5,Bb5a3,Ba3c4][%mdl 32]} Nc6 {[%emt 0:00:06]} 3. d4 {[%emt 0:00:06]} cxd4 {[%emt 0:00:04]} 4. Nxd4 {[%emt 0:00:03]} Nf6 {[%emt 0:00:06]} 5. Nc3 {[%emt 0:00:58]} e5 {[%emt 0:00:06]} 6. Ndb5 {[%emt 0:00:06]} d6 {[%emt 0:00:07]} 7. Nd5 {[%emt 0:00:04]} Nxd5 {[%emt 0:00:09]} 8. exd5 {[%emt 0:00:14]} Nb8 {[%emt 0:00:06]} 9. a4 {[%emt 0:00:17]} a6 {[%emt 0:11:08][%cal Ba7a6,Ba6b5][%mdl 32]} 10. Na3 {[%emt 0:01:27]} Nd7 {[%emt 0:01:19]} 11. Nc4 {[%emt 0:00:37]} b6 {[%emt 0:01:21] The position is equal.} 12. Be3 {[%emt 0:21:31]} Bb7 {[%emt 0:12:51]} (12... Rb8 $11) 13. Ra3 {[%emt 0:07:56]} b5 {[%emt 0:05:20]} 14. axb5 {[%emt 0:06:11]} axb5 {[%emt 0:00:08]} 15. Rb3 {[%emt 0:03:52]} bxc4 {[%emt 0:17:33]} 16. Rxb7 {[%emt 0:00:30]} Rb8 {[%emt 0:01:45]} (16... Ra4 $14) 17. Ra7 $16 {[%emt 0:00:45]} Nb6 {[%emt 0:07:38]} 18. Qa1 {[%emt 0:08:34][%cal Of1c4] Bxc4! would now be deadly. White is much more active.} Be7 {[%emt 0:02:27]} 19. Bxc4 {[%emt 0:08:18] Strongly threatening Bb5+.} O-O {[%emt 0:04:14] Black is weak on the light squares} 20. Bb3 {[%emt 0:04:10]} Bg5 {[%emt 0:00:57]} 21. Bxg5 {[%emt 0:03:35]} Qxg5 {[%emt 0:00:03]} 22. O-O {[%emt 0:00:09]} f5 {[%emt 0:01:44]} 23. f4 {[%emt 0:00:40]} exf4 {[%emt 0:02:20]} 24. Qc1 {[%emt 0:00:29]} Rbe8 {[%emt 0:11:44]} 25. Qxf4 {[%emt 0:01:08]} Qf6 {[%emt 0:00:40]} (25... Qd8 $14 {feels stronger.}) 26. Rb7 {[%emt 0:02:34]} Nc8 {[%emt 0:03:15]} 27. Ba4 {[%emt 0:03:16][%cal Bb3a4,Ba4d7,Bd7e6][%mdl 32]} Re5 {[%emt 0:06:17][%cal Oc8e7]} (27... Re4 $2 28. Qxe4 fxe4 29. Rxf6 Rxf6 30. Rb8 $18) 28. c4 {[%emt 0:02:31]} Ne7 {[%emt 0:00:51]} 29. Bd7 {[%emt 0:01:46]} Ng6 {[%emt 0:00:53]} 30. Qf2 {[%emt 0:01:04]} f4 {[%emt 0:05:10]} (30... Kh8 $14) 31. Be6+ {[%emt 0:00:14]} Kh8 {[%emt 0:00:13]} 32. Rd7 {[%emt 0:08:22]} (32. b4 $14 h6 33. b5) 32... Re4 $11 {[%emt 0:00:25]} 33. b3 {[%emt 0:00:13] [#]} (33. Rxd6 $11 {remains equal.} Qe5 34. Rc6) 33... Qe5 {[%emt 0:00:16]} (33... Ne5 $1 $17 {White must now prevent ...f3.} 34. Qc2 (34. Rxd6 $2 f3 $19) 34... Re3) 34. Rf7 $36 {[%emt 0:05:12][%mdl 2048] White is more active.} Ra8 {[%emt 0:00:53]} 35. Rf5 {[%emt 0:02:25]} Qc3 {[%emt 0:00:13][%cal Oa8a1]} 36. Qf3 {[%emt 0:06:15]} Qd4+ {[%emt 0:01:59]} 37. Qf2 {[%emt 0:00:01] And now Qxd4 would win.} Qc3 {[%emt 0:00:07][%cal Oa8a1] [#] Hoping for ...Ra1!} (37... Re3 $5 38. Kh1 $8 (38. Bf7 $2 Ra1 $19) 38... Qe4 $11) 38. Qf3 {[%emt 0:00:46]} Re3 {[%emt 0:03:43]} 39. Qh5 {[%emt 0:00:07][%cal Oh5h7] Threatening mate with Qxh7+!} Nf8 {[%emt 0:01:01]} (39... Re5 $1 $11 40. Rxe5 Nxe5) 40. Qf7 $2 {[%emt 0:01:49]} ({Much less strong is} 40. R1xf4 $6 Re1+ 41. Rf1 Rxf1+ 42. Rxf1 Qxb3 $16) (40. R5xf4 $18 Re1 41. Qh3 Rxf1+ 42. Rxf1 Qd4+ 43. Kh1) 40... g6 $2 {[%emt 0:00:15][%mdl 8192] Weighted Error Value: White=0.22 (precise) /Black=0.25 (precise) .  Loses game:     	---       	Black=2      Missed win:     	White=1     	---        Mistake:       	White=2     	Black=5      Inaccurate:     	White=2     	---        OK:         	White=12    	Black=11     Best:        	White=4     	Black=4} (40... Ng6 $14 41. R1xf4 Re1+ (41... Nxf4 42. Qf8+ Rxf8 43. Rxf8#) 42. Rf1 Rxf1+ 43. Rxf1 Qxb3) 1-0

[Event "Israel National League 2024"]
[Site "Israel"]
[Date "2024.02.09"]
[Round "5.23"]
[White "Katkov, Michelle"]
[Black "Khmelniker, Ilya"]
[Result "1/2-1/2"]
[ECO "C55"]
[WhiteElo "2106"]
[BlackElo "2469"]
[Annotator "TA"]
[PlyCount "82"]
[EventDate "2024.01.07"]
[EventType "team-tourn"]
[EventCountry "ISR"]
[SourceTitle "playchess.com"]
[Source "ChessBase"]
[SourceQuality "1"]
[TimeControl "40/5400+30:1800+30"]

{[%evp 11,82,14,17,6,31,13,18,14,23,0,31,29,35,33,24,21,28,30,52,43,42,48,44,32,48,45,72,78,68,65,67,75,64,71,70,70,63,0,29,0,31,43,26,-276,0,0,139,133,402,265,270,258,269,264,257,256,226,148,138,90,95,25,20,25,40,39,32,43,56,11,17,1,0]} 1. e4 {[%emt 0:01:12]} e5 {[%emt 0:00:33]} 2. Nf3 {[%emt 0:00:05]} Nc6 {[%emt 0:00:05]} 3. Bc4 {[%emt 0:00:07]} Nf6 {[%emt 0:00:07]} 4. d3 {[%emt 0:00:13]} Be7 {[%emt 0:01:01]} 5. O-O {[%emt 0:01:00]} O-O {[%emt 0:00:23]} 6. Nc3 {[%emt 0:03:28]} d6 {[%emt 0:00:58]} 7. a4 {[%emt 0:01:02]} Bg4 {[%emt 0:08:26]} 8. h3 {[%emt 0:06:46]} Bh5 {[%emt 0:00:09]} 9. Be3 {[%emt 0:12:38]} Qc8 {[%emt 0:29:04]} 10. Kh2 {[%emt 0:04:33]} Nd4 {[%emt 0:05:23]} 11. Bxd4 {[%emt 0:02:19]} exd4 {[%emt 0:00:07]} 12. Nd5 {[%emt 0:07:16]} Nxd5 {[%emt 0:01:43]} 13. Bxd5 {[%emt 0:02:42]} c6 {[%emt 0:03:50]} 14. Bb3 {[%emt 0:01:07]} d5 {[%emt 0:00:52]} 15. g4 {[%emt 0:17:43]} (15. exd5 {simplifies} Bd6+ 16. Kh1 cxd5 17. a5) 15... Bxg4 {[%emt 0:16:43]} 16. hxg4 {[%emt 0:00:27]} Qxg4 {[%emt 0:00:06]} 17. Rg1 $1 {[%emt 0:11:32]} (17. Nxd4 $2 Bd6+ 18. f4 Bxf4+ 19. Rxf4 Qxf4+ 20. Kg2 dxe4 $19) 17... Bd6+ {[%emt 0:01:13]} 18. e5 {[%emt 0:00:09]} Qf4+ {[%emt 0:05:00]} 19. Rg3 {[%emt 0:03:44]} Bxe5 {[%emt 0:03:00]} 20. Nxe5 {[%emt 0:01:23]} Qxe5 {[%emt 0:00:14]} 21. Qd2 {[%emt 0:03:49]} Rae8 {[%emt 0:01:53]} 22. Rag1 {[%emt 0:04:08]} (22. Qg5 {simplifies} g6 23. Qxe5 Rxe5 24. Rg4) 22... g6 {[%emt 0:02:58]} 23. Qh6 {[%emt 0:01:24]} Re7 {[%emt 0:01:52]} 24. f4 {[%emt 0:01:50] White is more active.} (24. Kg2 $14) 24... Qd6 {[%emt 0:05:41]} 25. R1g2 {[%emt 0:04:18]} Re3 {[%emt 0:01:24]} 26. Rxe3 {[%emt 0:02:39]} dxe3 {[%emt 0:00:08]} 27. Rg3 $2 {[%emt 0:01:27][%mdl 8192]} (27. c3 $11) 27... Qb4 $2 {[%emt 0:07:48]} (27... Re8 $19 28. Rh3 Re6 29. Qxh7+ Kf8 30. Qh8+ Ke7 31. Qh4+ g5 32. Qxg5+ Kd7) 28. f5 $40 {[%emt 0:02:18][%cal Bf4f5,Bf5f6][%mdl 160] [#] Intending f6! and mate. Black needs to defend precisely. The board is on fire.} Qe1 {[%emt 0:00:09]} (28... e2 $2 29. f6 $18) (28... Re8 $1 $11 {remains equal.} 29. fxg6 (29. Rxe3 $2 Qd2+ 30. Kh1 Rxe3 $19) 29... fxg6 30. Rxg6+ hxg6 31. Bxd5+ (31. Qxg6+ Kf8 $11) 31... cxd5 32. Qxg6+ Kf8 33. Qf6+ Kg8 34. Qg6+ Kf8 35. Qf6+ Kg8 36. Qg6+) 29. Qxe3 $16 {[%emt 0:00:50]} (29. Rxe3 $6 Qf2+ 30. Kh3 Qf1+ 31. Kh2 Qf2+ 32. Kh3 Qf1+ 33. Kg3 Qg1+ 34. Kf3 Qf1+ 35. Kg4 Qg2+ (35... Qxf5+ 36. Kg3 $16) 36. Rg3 Qf1 $11 (36... Qe2+ 37. Kh3 $14)) 29... Qd1 {[%emt 0:01:15][%mdl 8192]} (29... Re8 $16 30. Qxe1 (30. Qxa7 Re2+) 30... Rxe1) 30. f6 {[%emt 0:00:41][%cal Og3f3] aiming for Rf3!} (30. Qxa7 Re8 31. fxg6 (31. Qxb7 Qe2+ 32. Rg2 Qh5+ 33. Kg1 Re1+ 34. Kf2 Qe2+ 35. Kg3 Qe3+ 36. Kh2 Qf4+ 37. Rg3 Qf2+ 38. Kh3 Rh1+ 39. Kg4 Qxf5#) (31. Qf2 $2 Re2 $19) 31... Qd2+ (31... Re2+ $2 32. Rg2 $18) 32. Kh3 hxg6 $19) 30... Qh5+ {[%emt 0:00:25]} 31. Rh3 {[%emt 0:00:34]} Qf5 {[%emt 0:00:01]} 32. Rf3 {[%emt 0:00:32]} (32. Qxa7 $2 {perishes.} Re8 (32... Qf4+ 33. Kg2 $11) 33. Kg3 (33. Qxb7 $2 Qf2+ 34. Kh1 Re1#) (33. Qd4 $2 Re2+ 34. Kg3 Qg5+ 35. Qg4 Re3+ 36. Kf2 Qxg4 $19) 33... h5 $19) 32... Qh5+ {[%emt 0:00:01]} 33. Kg2 {[%emt 0:00:32]} Qg4+ {[%emt 0:00:28]} 34. Rg3 {[%emt 0:00:40]} Qe6 {[%emt 0:00:33]} 35. Qxa7 {[%emt 0:02:11]} (35. Qf2 $142) 35... Qxf6 {[%emt 0:00:04] [#]} 36. Qe3 {[%emt 0:00:30] Wards off Re8} (36. Qxb7 $2 {loses.} Re8 $19) ({White should try} 36. c3 $1 $16) 36... Qxb2 $11 {[%emt 0:00:26]} 37. d4 {[%emt 0:00:11]} Qa3 {[%emt 0:00:17]} 38. Rh3 {[%emt 0:00:23] Threatening mate with Qh6.} h5 $1 {[%emt 0:01:02]} 39. Qe5 {[%emt 0:00:55][%cal Ob3d5]} Qc1 {[%emt 0:00:46]} 40. Re3 {[%emt 0:00:38]} f6 {[%emt 0:03:35]} 41. Qg3 {[%emt 0:06:55]} Qd2+ {[%emt 0:31:17] White really could win this.   Weighted Error Value: White=0.30/Black=0.36.  Loses game:     	White=1     	Black=1      Missed win:     	---       	Black=1      Mistake:       	White=3     	Black=1      Inaccurate:     	White=4     	Black=4      OK:         	White=14    	Black=14     Best:        	White=4     	Black=3      Strong:       	White=1     	Black=1} 1/2-1/2

[Event "Israel National League 2024"]
[Site "Israel"]
[Date "2024.02.09"]
[Round "5.24"]
[White "Shvayger, Yuliya"]
[Black "Kunin, Pavel"]
[Result "1/2-1/2"]
[ECO "C10"]
[WhiteElo "2350"]
[BlackElo "2221"]
[Annotator "TA"]
[PlyCount "128"]
[EventDate "2024.01.07"]
[EventType "team-tourn"]
[EventCountry "ISR"]
[SourceTitle "playchess.com"]
[Source "ChessBase"]
[SourceQuality "1"]
[TimeControl "40/5400+30:1800+30"]

{[%evp 39,128,-74,-4,-28,-29,-35,-22,-50,-59,-58,-43,-47,-36,-54,53,49,56,59,58,57,52,51,50,41,126,127,110,76,80,40,43,25,28,32,22,23,30,17,17,18,12,0,0,0,0,0,0,0,0,0,0,0,0,0,0,0,0,0,0,0,0,0,0,0,0,0,0,0,0,0,0,0,0,0,0,0,0,0,0,0,0,0,0,0,0,0,0,0,0,0,0]} 1. e4 {[%emt 0:00:03]} e6 {[%emt 0:00:06]} 2. d4 {[%emt 0:00:31]} d5 {[%emt 0:00:10]} 3. Nd2 {[%emt 0:00:27]} dxe4 {[%emt 0:00:44]} 4. Nxe4 {[%emt 0:00:22]} Nd7 {[%emt 0:00:19]} 5. Nf3 {[%emt 0:04:40]} Ngf6 {[%emt 0:00:39]} 6. Nxf6+ {[%emt 0:01:15]} Nxf6 {[%emt 0:00:13]} 7. Bd3 {[%emt 0:00:07]} c5 {[%emt 0:00:49]} 8. O-O {[%emt 0:00:58]} cxd4 {[%emt 0:00:34]} 9. Nxd4 {[%emt 0:01:02]} Bc5 {[%emt 0:01:01]} 10. Be3 {[%emt 0:06:04]} Bb6 {[%emt 0:05:56]} 11. c3 {[%emt 0:03:24]} O-O {[%emt 0:00:51] C10: French with 3 Nc3: Unusual Black 3rd moves and 3...dxe4.} 12. Re1 {[%emt 0:04:26]} e5 {[%emt 0:10:40]} 13. Nb3 {[%emt 0:01:37]} Bg4 {[%emt 0:02:37]} 14. Qc2 {[%emt 0:04:34]} Re8 $146 {[%emt 0:08:01]} ({Predecessor:} 14... Bxe3 15. Rxe3 Qc7 16. h3 Bh5 17. Nd2 Nd5 18. Bxh7+ Kh8 19. Qf5 g6 20. Qxe5+ Qxe5 21. Rxe5 {½-½ Kapusta,T (2171)-Owens,J (2153) W-ch WS/M/630 email 2017}) 15. h3 {[%emt 0:04:35]} Bh5 {[%emt 0:00:40]} 16. Bb5 {[%emt 0:02:28]} Re7 {[%emt 0:01:21]} 17. Bg5 {[%emt 0:01:36]} Bg6 {[%emt 0:01:05]} 18. Qe2 {[%emt 0:01:10]} a6 {[%emt 0:01:30]} 19. Bxf6 {[%emt 0:13:04]} gxf6 {[%emt 0:01:06]} 20. Bc4 {[%emt 0:00:08]} Qc8 {[%emt 0:01:36]} (20... Qc7 $17) 21. Bd5 {[%emt 0:00:57]} Qf5 {[%emt 0:00:32]} 22. Be4 {[%emt 0:09:14]} Qf4 {[%emt 0:02:35]} 23. Bxg6 {[%emt 0:00:29]} hxg6 {[%emt 0:00:08]} 24. Rad1 {[%emt 0:00:31]} e4 {[%emt 0:03:29]} 25. Nd4 {[%emt 0:01:55]} f5 {[%emt 0:05:09]} 26. Qe3 {[%emt 0:05:03]} Qh4 {[%emt 0:02:13]} ({Black should try} 26... Qe5 $15 27. Qg5 Rae8) 27. Nxf5 $1 $14 {[%emt 0:01:13]} Bxe3 {[%emt 0:00:08]} 28. Nxh4 {[%emt 0:00:06]} Bg5 {[%emt 0:00:09]} 29. g3 {[%emt 0:00:06]} Bxh4 {[%emt 0:00:23]} 30. gxh4 {[%emt 0:00:05]} f5 {[%emt 0:03:18]} 31. Kh2 {[%emt 0:03:09]} f4 {[%emt 0:04:04]} (31... Kg7 $14) 32. Rd6 $16 {[%emt 0:03:50]} Kf7 {[%emt 0:00:36]} 33. Rd4 {[%emt 0:04:40]} Rae8 {[%emt 0:00:51]} 34. f3 {[%emt 0:00:12]} exf3 {[%emt 0:02:19]} 35. Rxf4+ {[%emt 0:00:03]} Kg8 $1 {[%emt 0:01:21]} ({Don't play} 35... Kg7 36. Rxe7+ Rxe7 37. Kg3 $16 (37. Rxf3 Re2+ 38. Kg3 Rxb2 $11)) 36. Rxe7 {[%emt 0:02:14]} Rxe7 {[%emt 0:00:02]} 37. Kg3 {[%emt 0:00:24]} Re2 {[%emt 0:00:08]} 38. Rb4 {[%emt 0:01:34]} (38. b4 {simplifies} Rxa2 39. Kxf3 Rh2 40. Kg3) 38... f2 {[%emt 0:00:01]} 39. Kg2 {[%emt 0:00:08]} b5 {[%emt 0:00:12]} 40. a3 {[%emt 0:16:15]} Rc2 {[%emt 0:00:11]} 41. a4 {[%emt 0:31:57]} bxa4 {[%emt 0:30:06]} 42. Rxa4 {[%emt 0:00:05]} Rxb2 {[%emt 0:00:07]} 43. Rxa6 {[%emt 0:00:04]} Kg7 {[%emt 0:00:13]} 44. Rc6 {[%emt 0:03:13]} Rc2 {[%emt 0:00:02]} 45. c4 {[%emt 0:01:49]} Kh7 {[%emt 0:00:02]} 46. Rc7+ {[%emt 0:00:53]} Kg8 {[%emt 0:00:02]} 47. Rc5 {[%emt 0:00:00]} Kg7 {[%emt 0:00:00]} 48. Rc7+ {[%emt 0:00:00]} Kg8 {[%emt 0:00:00]} 49. Rc5 {[%emt 0:00:00]} Kg7 {[%emt 0:00:00]} 50. Kf1 {[%emt 0:00:00]} Kg8 {[%emt 0:00:00]} 51. h5 {[%emt 0:00:00]} gxh5 $1 {[%emt 0:00:00]} 52. h4 {[%emt 0:00:00]} Kg7 {[%emt 0:00:00]} 53. Rg5+ {[%emt 0:00:00]} Kh6 {[%emt 0:00:00]} 54. c5 {[%emt 0:00:00]} Rb2 {[%emt 0:00:00]} 55. Re5 {[%emt 0:00:00]} Rc2 {[%emt 0:00:00]} 56. Re6+ {[%emt 0:00:00]} Kg7 {[%emt 0:00:00]} 57. c6 {[%emt 0:00:00]} Kh7 {[%emt 0:00:00]} 58. Re7+ {[%emt 0:00:15]} Kg6 {[%emt 0:00:00]} 59. Rc7 {[%emt 0:02:39]} Kh6 {[%emt 0:00:00]} 60. Rc8 {[%emt 0:00:08]} Kg7 {[%emt 0:00:00]} 61. Kg2 {[%emt 0:00:20]} Kh7 {[%emt 0:00:00]} 62. c7 {[%emt 0:01:20]} Kg7 {[%emt 0:00:00]} 63. Kf1 {[%emt 0:00:08]} Kh7 {[%emt 0:00:00]} 64. Kg2 {[%emt 0:00:09]} Kg7 {[%emt 0:00:00]} 1/2-1/2

[Event "Israel National League 2024"]
[Site "Israel"]
[Date "2024.02.09"]
[Round "5.25"]
[White "Boruchovsky, Avital"]
[Black "Levin, Guy"]
[Result "1/2-1/2"]
[ECO "B31"]
[WhiteElo "2528"]
[BlackElo "2435"]
[Annotator "TA"]
[PlyCount "133"]
[EventDate "2024.01.07"]
[EventType "team-tourn"]
[EventCountry "ISR"]
[SourceTitle "playchess.com"]
[Source "ChessBase"]
[SourceQuality "1"]
[TimeControl "40/5400+30:1800+30"]

{[%evp 44,133,174,-44,-25,-33,-44,-51,-35,-72,-29,-33,0,0,0,0,10,0,330,324,518,471,482,226,231,225,255,256,245,242,242,235,248,235,235,156,160,0,257,270,289,285,254,267,252,22,22,22,22,22,29,27,35,37,37,37,37,0,0,0,0,0,0,0,0,0,0,0,0,0,0,0,0,0,0,0,0,0,0,0,0,0,0,0,0,0,0,0,0,0,0,0]} 1. e4 {[%emt 0:01:20]} c5 {[%emt 0:00:14]} 2. Nf3 {[%emt 0:00:06]} Nc6 {[%emt 0:00:07]} 3. Bb5 {[%emt 0:00:09]} g6 {[%emt 0:00:10]} 4. O-O {[%emt 0:00:35]} Bg7 {[%emt 0:00:04]} 5. Re1 {[%emt 0:00:45]} e5 {[%emt 0:00:23]} 6. Bxc6 {[%emt 0:01:00]} dxc6 {[%emt 0:01:06]} 7. d3 {[%emt 0:00:09]} Qe7 {[%emt 0:01:53]} 8. a3 {[%emt 0:04:12]} a5 {[%emt 0:06:31]} 9. Be3 {[%emt 0:09:53]} Nf6 {[%emt 0:06:43]} 10. b4 {[%emt 0:02:06]} Nd7 {[%emt 0:09:16]} 11. bxa5 {[%emt 0:01:49]} Rxa5 {[%emt 0:01:46]} 12. a4 {[%emt 0:04:45]} c4 {[%emt 0:17:06]} 13. Nbd2 {[%emt 0:02:39]} cxd3 {[%emt 0:00:33]} 14. cxd3 {[%emt 0:01:09]} O-O {[%emt 0:07:42]} 15. Nc4 {[%emt 0:01:55]} Ra6 {[%emt 0:00:07]} 16. a5 {[%emt 0:07:04]} Rd8 {[%emt 0:03:01]} 17. Qc2 {[%emt 0:08:43]} Nf8 {[%emt 0:03:45]} 18. h3 {[%emt 0:09:58]} h6 {[%emt 0:10:09]} 19. Qd2 {[%emt 0:04:26]} Kh7 {[%emt 0:05:41]} 20. Bb6 {[%emt 0:00:42]} Re8 {[%emt 0:01:20]} 21. Rac1 {[%emt 0:04:20]} Qd7 {[%emt 0:11:36]} 22. Qb4 {[%emt 0:02:04]} Re6 {[%emt 0:02:17] [#]} 23. Ncxe5 $2 {[%emt 0:07:08]} (23. Red1 $1 $18 {[%mdl 512]}) 23... Rxe5 $15 {[%emt 0:00:32]} 24. Nxe5 {[%emt 0:00:50]} Bxe5 {[%emt 0:00:02]} 25. d4 $1 {[%emt 0:01:08]} (25. Qxf8 $2 Rxb6 26. Qa3 (26. axb6 $2 Bd6 $19) 26... Ra6 $19) 25... Bd6 {[%emt 0:02:18]} 26. Qc4 {[%emt 0:03:44]} Qe7 {[%emt 0:00:14]} 27. d5 {[%emt 0:02:46]} Nd7 {[%emt 0:01:03]} 28. e5 $1 {[%emt 0:02:36]} Nxe5 {[%emt 0:00:59]} (28... Bxe5 $6 29. f4 Nxb6 30. axb6 (30. Rxe5 $2 Qxe5 31. axb6 Qe3+ 32. Kh2 Rxb6 $19) 30... cxd5 31. Qxd5 $16 (31. Qxc8 Bd4+ 32. Kh1 Qf6 $16) (31. Rxe5 $2 Qxe5 32. Qxc8 Qe3+ 33. Kh1 Rxb6 $19)) 29. Qc3 {[%emt 0:01:31]} Qg5 {[%emt 0:01:49]} (29... g5 $5) 30. dxc6 {[%emt 0:01:17]} Qf4 $2 {[%emt 0:04:05][%mdl 8192]} (30... bxc6 $2 31. Rcd1 Qe7 32. f4 $18 (32. Rxd6 Qxd6 33. Rxe5 Be6 $16)) (30... Nxc6 $11 31. Re8 Be5 (31... Nxa5 32. Rh8#) 32. Rxe5 Qxe5 33. Qxe5 Nxe5 34. Rxc8 Nc6) 31. Rcd1 $18 {[%emt 0:00:37]} ({Less strong is} 31. c7 Be6 32. Qd4 (32. c8=B Bxc8 33. Rcd1 Qc4 $18) 32... Qxd4 33. Bxd4 Rxa5 $18 (33... Nd3 $2 34. Rxe6 Bxc7 35. Re8 $18)) 31... Rxb6 {[%emt 0:02:24]} (31... Nxc6 $142 32. Rxd6 Qxd6) 32. axb6 $18 {[%emt 0:01:29]} Nxc6 {[%emt 0:00:03] [#]} 33. Rxd6 {[%emt 0:00:18]} (33. g3 $142 $1 {[%mdl 512]} Qb4 34. Qf6) 33... Qxd6 $18 {[%emt 0:00:03]} 34. Re8 {[%emt 0:00:05]} Qd1+ {[%emt 0:00:06]} 35. Kh2 {[%emt 0:00:10]} Qd6+ {[%emt 0:00:04]} 36. g3 {[%emt 0:04:05]} Nd4 {[%emt 0:00:01]} 37. Qxc8 {[%emt 0:01:08]} Qxb6 {[%emt 0:01:11]} 38. Rh8+ {[%emt 0:07:55]} Kg7 {[%emt 0:00:01]} 39. Rg8+ {[%emt 0:01:40]} Kh7 {[%emt 0:02:29]} 40. Rh8+ {[%emt 0:00:35]} (40. Re8 $1 $16) 40... Kg7 $18 {[%emt 0:00:01] [#]} 41. Qf8+ $1 {[%emt 0:10:34]} Kf6 {[%emt 0:00:12]} 42. Qxh6 {[%emt 0:00:51]} Nf3+ {[%emt 0:08:14]} 43. Kg2 {[%emt 0:00:04]} Qc6 {[%emt 0:07:25] [#]} 44. Qf4+ $2 {[%emt 0:00:56]} (44. Qe3 $1 $18 {[%cal Re3f3]} Kg7 45. Rd8 Nd4+ 46. f3) 44... Kg7 $11 {[%emt 0:00:02]} 45. Rh7+ {[%emt 0:00:05]} Kxh7 {[%emt 0:00:05]} 46. Qxf7+ {[%emt 0:00:04]} Kh6 {[%emt 0:02:09]} 47. Qf8+ {[%emt 0:02:30]} Kh7 {[%emt 0:00:03]} 48. Qxf3 {[%emt 0:01:15]} Qd7 {[%emt 0:00:35]} 49. h4 {[%emt 0:00:03]} b5 {[%emt 0:00:50]} 50. h5 {[%emt 0:00:58]} gxh5 {[%emt 0:00:21]} 51. Qxh5+ {[%emt 0:00:06]} Kg7 {[%emt 0:00:17]} 52. Qe5+ {[%emt 0:00:38]} Kh7 {[%emt 0:00:44]} 53. Qe4+ {[%emt 0:00:18]} Kg7 {[%emt 0:01:04]} 54. g4 {[%emt 0:01:46]} Qd1 {[%emt 0:01:43]} 55. Qe7+ {[%emt 0:06:59]} Kg8 {[%emt 0:00:14]} 56. Qe6+ {[%emt 0:00:06]} Kg7 {[%emt 0:01:02]} 57. Qe4 {[%emt 0:05:23]} Kf6 {[%emt 0:01:35]} 58. Qf5+ {[%emt 0:02:56]} Kg7 {[%emt 0:00:03]} 59. Kg3 {[%emt 0:02:20]} Qg1+ {[%emt 0:01:40]} 60. Kf3 {[%emt 0:00:03]} Qd1+ {[%emt 0:00:34]} 61. Ke3 {[%emt 0:00:25]} Qe1+ {[%emt 0:00:18]} 62. Kd4 {[%emt 0:01:37]} b4 {[%emt 0:01:17]} 63. Qg5+ {[%emt 0:01:02]} Kf7 {[%emt 0:01:28]} 64. Qf5+ {[%emt 0:00:48]} Kg7 {[%emt 0:00:13]} 65. Qc2 {[%emt 0:00:10]} b3 {[%emt 0:01:26]} 66. Qb2 {[%emt 0:00:06]} Kg6 {[%emt 0:00:58]} 67. Qxb3 {[%emt 0:01:01]} 1/2-1/2